{"text_format":"1","workbook":"xlsx","n_sheets":2,"sheets":["Admin Ranges","Task Data "],"not_rendered":{"charts":0,"images":0,"macros":1,"external_links":1,"defined_names":3,"comments":0,"pivot_tables":0},"unopened":[],"bounds":{"document_bytes":16777216,"sheet_cells":100000,"rows_first":2000,"rows_last":500,"rows_between":2000,"halvings":0,"cell_chars":16384,"cell_head_chars":4096},"cells_cut":0,"cells_raw":0,"read":"whole","date_system":"1900"}

{"sheet":"Admin Ranges","index":0,"n_rows":17,"n_cols":21,"rows_kept":17,"cut":false,"hidden":false,"merged":[[3,17,3,18],[0,1,0,10],[3,1,3,3],[3,5,3,7],[3,13,3,14]]}
[null,"ADMIN & SETTINGS"]
[]
[]
[null,"SCHEDULING",null,null,null,"DATE RANGES",null,null,null,"Recurring Frequencies",null,"Task Types",null,"Names",null,null,null,"Time Interval",null,null,"Years"]
[null,"Months","Days","Start Weekday",null,"Range","From","To",null,"Frequency",null,"HACCP ",null,"Status","Email ",null,null,"Text","Time",null,2023]
[null,"January","Monday","Monday",null,"This Month",{"$f":"DATE(YEAR(TODAY()),MONTH(TODAY()),1)","v":"2024-12-01"},{"$f":"EOMONTH(DATE(YEAR(TODAY()),MONTH(TODAY()),1),0)","v":"2024-12-31"},null,"Day(s)",null,"GSP",null,"Abdelrahman",null,null,null,"5 Min.",{"$f":"1/24/12","v":"00:05:00"},null,2024]
[null,"February","Tuesday","Start Time",null,"Last Month",{"$f":"DATE(YEAR(TODAY()),MONTH(TODAY())-1,1)","v":"2024-11-01"},{"$f":"EOMONTH(DATE(YEAR(TODAY()),MONTH(TODAY()),1),-1)","v":"2024-11-30"},null,"Week(s)",null,"FS Audit ",null,"Sally",null,null,null,"10 Min.",{"$f":"1/24/6","v":"00:10:00"},null,2025]
[null,"March","Wednesday","08:00:00",null,"This Year",{"$f":"DATE(YEAR(TODAY()),1,1)","v":"2024-01-01"},{"$f":"DATE(YEAR(TODAY()),12,31)","v":"2024-12-31"},null,"Month(s)",null,"Training ",null,"Bishoy Sabry",null,null,null,"15 Min.",{"$f":"1/24/4","v":"00:15:00"},null,2026]
[null,"April","Thursday","Time Interval",null,"Last Year",{"$f":"DATE(YEAR(TODAY())-1,1,1)","v":"2023-01-01"},{"$f":"DATE(YEAR(TODAY())-1,12,31)","v":"2023-12-31"},null,null,null,"RM Issue ",null,"Bsihoy Essam ",null,null,null,"30 Min.",{"$f":"1/24/2","v":"00:30:00"},null,2027]
[null,"May","Friday","30 Min.",null,"Today",{"$f":"TODAY()","v":"2024-12-23"},{"$f":"TODAY()","v":"2024-12-23"},null,"Time Units",null,"PK Issue",null,null,null,null,null,"1 Hour",{"$f":"1/24","v":"01:00:00"},null,2028]
[null,"June","Saturday",{"$f":"IFERROR(INDEX(S6:S10,MATCH(D10,TimeIntervals,0),1),S8)","v":"00:30:00"},null,"Last 7 Days",{"$f":"TODAY()-6","v":"2024-12-17"},{"$f":"TODAY()","v":"2024-12-23"},null,"Minutes",null,"Micro ",null,null,null,null,null,null,null,null,2029]
[null,"July","Sunday",null,null,"Last 15 Days",{"$f":"TODAY()-14","v":"2024-12-09"},{"$f":"TODAY()","v":"2024-12-23"},null,"Hours",null,"Device "]
[null,"August",null,null,null,null,null,null,null,"Days",null,"Others "]
[null,"September",null,null,null,null,null,null,null,"Weeks",null,"SOP "]
[null,"October",null,null,null,null,null,null,null,"Months"]
[null,"November"]
[null,"December"]

{"sheet":"Task Data ","index":1,"n_rows":21,"n_cols":9,"rows_kept":21,"cut":false,"hidden":false,"merged":[[0,0,0,7]]}
["Task Details "]
[]
["Task ID ",1]
["Task Name","sales sheet "]
["Task Type ","Others "]
["Task Description ","Update sales sheet"]
["Starting Date ","2025-01-01"]
["Due Date ","2025-01-20"]
["Completion Date"]
["Assigned To ","Abdelrahman"]
[]
["Recur Taske Every"]
["Week(s)",1]
["Start On","2025-01-01"]
["Until","2025-04-01"]
[]
[]
[]
[]
["Task ID ","Task Name","Task Type ","Task Description ","Starting Date ","Due Date ","Completion Date ","Assigned To ","Status"]
[1,"sales sheet ","Others ","Update sales sheet","2025-01-01","2025-01-20",null,"Abdelrahman"]